bitfinex/quotes_ETHUSD_20260313
["timestamp","ask_amount","ask_price","bid_price","bid_amount"]
[1773423388697,4.17547447,2117.9,2117.2,3.93027047]
[1773423389846,4.17547447,2117.9,2117.1,1.18081983]
[1773423389847,2.99505991,2117.8,2117.1,1.18081983]
[1773423390263,2.99505991,2117.8,2117.1,3.91996118]
[1773423391094,1.18052604,2117.7,2117.1,3.91996118]
[1773423391386,2.99505991,2117.8,2117.1,3.91996118]
[1773423391589,4.17553344,2117.8,2117.2,0.04723219]
[1773423391791,0.24071112,2118.2,2117.2,2.77607598]
[1773423391792,4.17536301,2118.1,2117.2,2.77607598]
[1773423392378,1.18026294,2118.2,2117.2,2.72884379]
[1773423393179,4.17614128,2118.5,2117.4,2.723679]
[1773423393378,4.17614842,2118.5,2117.6,2.723679]
[1773423393581,0.001,2118.5,2117.7,2.71853204]
[1773423393796,1.17993969,2118.8,2117.8,2.71753204]
[1773423394082,4.17496206,2118.9,2117.8,2.71753204]
[1773423394385,4.17584576,2119.1,2117.8,2.71753204]
[1773423394554,2.99505991,2119.0,2117.8,2.71753204]
[1773423394873,2.99505991,2118.7,2117.4,2.71243753]
[1773423395069,1.18002454,2118.6,2117.8,2.71243753]
[1773423395886,2.033,2119.1,2117.8,2.71243753]
[1773423395887,1.17985747,2118.9,2117.8,2.71243753]
[1773423396580,2.99505991,2118.8,2117.8,2.71243753]
[1773423397278,1.17996884,2118.7,2117.9,1.18041456]
[1773423397668,1.17996884,2118.7,2117.9,3.87754535]
[1773423397864,4.17502875,2118.7,2117.9,3.87754535]
[1773423398064,2.99505991,2118.6,2117.9,2.69713079]
[1773423398272,2.99505991,2118.6,2117.8,1.18042804]
[1773423399381,1.18008024,2118.5,2117.7,5.43256761]
[1773423399581,1.18108024,2118.5,2117.7,5.43256761]
[1773423400210,4.17614015,2118.5,2117.7,5.43256761]
[1773423400422,2.99505991,2118.4,2117.7,1.18051525]
[1773423400788,2.99505991,2118.4,2117.6,3.86353355]
[1773423400995,2.99505991,2118.4,2117.6,0.0011]
[1773423401302,2.99505991,2118.2,2117.6,0.0011]
[1773423402993,1.18019166,2118.3,2117.6,2.67280677]
[1773423403199,1.18019166,2118.3,2117.7,0.04722104]
[1773423403676,7.71582656,2118.4,2117.7,0.04722104]
[1773423404277,2.99505991,2118.4,2117.7,3.89442437]
[1773423405410,1.18109303,2118.5,2117.8,2.66175126]
[1773423405579,1.18108069,2118.5,2118.0,1.18035882]
[1773423405774,1.18108069,2118.5,2118.1,0.04721212]
[1773423405775,4.28379859,2118.5,2118.1,0.04721212]
[1773423406020,3.1037179,2118.5,2117.9,1.18036912]
[1773423406302,0.001,2118.5,2118.0,2.65672652]
[1773423407404,3.1037179,2118.5,2117.8,5.39114423]
[1773423407610,1.18013595,2118.4,2117.8,5.39114423]
[1773423407789,0.001,2118.5,2117.9,2.64669482]
[1773423407994,1.18108264,2118.5,2117.9,2.64669482]
[1773423408210,0.001,2118.5,2117.9,2.64669482]
[1773423408412,3.1027179,2118.8,2117.9,2.64569482]
[1773423409414,1.17980357,2119.0,2117.9,2.64569482]
[1773423409728,4.28252147,2119.0,2118.1,2.63578188]
[1773423410404,3.1027179,2118.9,2118.1,2.63578188]
[1773423411783,4.28262723,2118.9,2118.3,1.18019166]
[1773423412182,4.28262723,2118.9,2118.3,1.18129166]
[1773423412385,0.001,2118.8,2118.3,1.18129166]
[1773423412606,3.02344032,2118.8,2118.3,0.0011]
[1773423412831,3.02244032,2118.0,2116.1,1.18141864]
[1773423413124,3.02244032,2117.3,2116.1,1.18141864]
[1773423413283,3.02244032,2117.3,2116.2,0.04835451]
[1773423413479,3.02244032,2117.3,2116.2,0.0011]
[1773423413906,3.02244032,2117.1,2116.2,0.0011]
[1773423414482,3.02244032,2116.9,2116.2,0.0011]
[1773423414690,3.02244032,2116.9,2115.9,1.1814909]
[1773423415089,3.02244032,2116.9,2115.8,1.18157411]
[1773423415314,3.02244032,2116.9,2115.9,0.04726121]
[1773423416013,1.18102796,2116.8,2116.0,1.18147448]
[1773423416209,3.02244032,2116.7,2115.9,0.04726121]
[1773423416421,3.02244032,2116.7,2115.6,1.181657]
[1773423416738,3.02244032,2116.4,2115.5,0.34271019]
[1773423416898,3.02244032,2116.1,2115.5,0.34271019]
[1773423417101,3.02244032,2116.1,2115.5,0.1345847]
[1773423418096,3.02244032,2116.1,2115.1,1.18195073]
[1773423418097,3.02244032,2115.8,2114.6,4.7289518]
[1773423418422,3.81561293,2115.9,2114.6,4.7289518]
[1773423418423,3.02244032,2115.6,2114.6,4.7289518]
[1773423418587,3.02244032,2115.6,2114.6,7.33283328]
[1773423418918,3.02244032,2115.6,2114.6,4.7289518]
[1773423419083,3.02244032,2115.6,2114.8,0.23435527]
[1773423419493,3.02244032,2115.6,2114.9,0.23435527]
[1773423419691,3.02244032,2115.6,2114.6,4.7289518]
[1773423420105,3.02244032,2115.5,2114.8,1.18214488]
[1773423420622,3.02244032,2115.5,2114.8,1.41650015]
[1773423421194,3.02244032,2115.5,2114.8,1.18214488]
[1773423421393,3.02244032,2115.5,2114.8,1.41650015]
[1773423421612,1.18162903,2115.8,2114.8,1.18214488]
[1773423421810,5.65652294,2115.9,2114.8,3.77134739]
[1773423422118,3.02244032,2115.9,2115.0,1.18203309]
[1773423422314,3.02244032,2115.9,2115.0,1.41638836]
[1773423422491,3.02244032,2115.9,2115.0,1.18203309]
[1773423422691,3.02244032,2115.9,2115.1,1.555]
[1773423422922,1.18147629,2116.0,2114.2,2.58434695]
[1773423422923,3.02244032,2116.0,2114.2,2.58434695]
[1773423423214,3.02244032,2115.9,2114.4,2.58434695]
[1773423423419,3.02244032,2115.7,2114.5,1.539]
[1773423423736,1.82822107,2115.8,2113.9,1.89761368]
[1773423423737,3.02244032,2115.1,2113.9,1.89761368]
[1773423424187,3.02244032,2114.9,2113.9,1.89761368]
[1773423424393,3.02244032,2114.1,2112.9,4.73272234]
[1773423424813,3.02244032,2114.1,2113.0,2.57469469]
[1773423424994,3.02244032,2114.6,2114.5,0.0011]
[1773423425202,3.02244032,2114.4,2113.0,2.57469469]
[1773423425416,3.02244032,2114.4,2113.1,1.535]
[1773423426122,0.065536,2114.3,2112.5,2.59103086]
[1773423426326,3.02244032,2113.8,2112.6,1.18337593]
[1773423426508,3.02244032,2113.7,2112.6,1.18337593]
[1773423426713,3.02244032,2113.7,2112.8,0.23435527]
[1773423426897,3.02244032,2113.7,2111.9,0.17353524]
[1773423427097,3.02244032,2113.4,2112.0,4.73465537]
[1773423427323,3.02244032,2113.4,2112.2,2.86786442]
[1773423427506,3.02244032,2113.8,2112.2,2.86786442]
[1773423427903,3.02244032,2113.8,2112.3,1.515]
[1773423428131,3.02244032,2113.8,2112.3,4.38655753]
[1773423428328,1.18276008,2113.7,2112.5,2.87155753]
[1773423428499,1.18276008,2113.7,2112.6,1.518]
[1773423428701,3.02244032,2113.5,2112.4,2.70248797]
[1773423429514,3.02244032,2113.5,2112.4,1.18348797]
[1773423429701,3.02244032,2113.5,2112.5,1.522]
[1773423430310,3.02244032,2113.4,2112.6,1.525]
[1773423431603,3.254689,2113.8,2112.6,4.37803469]
[1773423431845,3.02244032,2113.8,2112.7,17.81385469]
[1773423432127,1.82822107,2114.4,2112.8,2.85303469]
[1773423432333,1.18248037,2114.2,2112.9,1.18320791]
[1773423432532,3.02244032,2114.0,2113.0,1.531]
[1773423433108,2.52244032,2114.0,2113.0,1.531]
[1773423433732,0.04732831,2113.9,2112.9,1.18320791]
[1773423433939,0.04732831,2113.9,2113.1,1.533]
[1773423434407,0.04732831,2113.9,2113.2,1.18303993]
[1773423434921,4.44346211,2114.4,2113.2,1.18303993]
[1773423435127,0.04732831,2114.3,2113.2,1.18303993]
[1773423435428,0.04732831,2114.3,2113.2,4.3150945]
[1773423435820,0.04732831,2114.3,2113.3,3.13205457]
[1773423436134,0.04732831,2114.3,2113.4,1.538]
[1773423436327,0.04732831,2114.3,2113.5,1.18287201]
[1773423436837,0.04732831,2114.3,2113.6,1.539]
[1773423437042,2.63408262,2114.7,2113.6,1.539]
[1773423437232,5.0770705,2114.8,2113.7,3.13205457]
[1773423437539,3.89492029,2114.8,2113.7,3.13205457]
[1773423437705,3.02244032,2114.7,2113.1,0.0011]
[1773423437910,3.02244032,2114.4,2113.2,4.73171193]
[1773423438111,3.02244032,2114.4,2113.2,6.25671193]
[1773423438307,4.20486476,2114.3,2113.2,6.25671193]
[1773423438511,3.02244032,2114.3,2113.2,6.25671193]
[1773423438942,3.02244032,2114.3,2113.2,4.73171193]
[1773423439143,3.02244032,2114.3,2113.3,1.528]
[1773423439753,1.18233848,2114.5,2113.3,4.66005457]
[1773423439920,1.18228795,2114.6,2113.4,0.04731711]
[1773423440236,3.02244032,2114.3,2113.3,1.531]
[1773423440535,3.02244032,2114.3,2113.4,1.18292798]
[1773423440714,3.02244032,2114.3,2113.4,1.23024509]
[1773423440919,4.2048672,2114.3,2113.4,1.18292798]
[1773423441124,3.02244032,2114.3,2113.4,1.18292798]
[1773423441749,4.20486736,2114.3,2113.4,1.18292798]
[1773423442259,3.03401186,2114.2,2113.4,1.18292798]
[1773423442644,4.21652841,2114.2,2113.1,4.73281193]
[1773423442847,3.03401186,2114.1,2113.2,1.536]
[1773423444646,4.21655204,2114.1,2113.3,1.18298395]
[1773423444863,4.21638038,2114.5,2113.4,0.04731711]
[1773423445060,4.21634321,2114.5,2113.4,2.97343356]
[1773423445363,1.1082022,2114.8,2113.6,2.92611645]
[1773423445524,1.1082022,2114.8,2113.8,2.92611645]
[1773423445719,1.18201905,2115.1,2113.9,4.46711645]
[1773423446036,4.21598958,2115.1,2113.9,4.46711645]
[1773423446234,3.03401186,2115.1,2114.0,2.92611645]
[1773423446752,3.03401186,2115.1,2114.1,1.1825363]
[1773423446753,4.21599195,2115.1,2114.1,1.1825363]
[1773423446949,3.03401186,2115.1,2114.1,1.1825363]
[1773423447147,3.03401186,2115.1,2114.1,4.10865275]
[1773423447449,4.21598983,2115.1,2114.1,4.10865275]
[1773423447618,3.03401186,2115.1,2114.1,4.10865275]
[1773423447816,3.03401186,2115.0,2114.2,1.544]
[1773423448250,3.03401186,2115.0,2114.0,1.18254821]
[1773423449442,3.03401186,2114.8,2114.0,1.18254821]
[1773423449642,3.03401186,2114.8,2114.0,1.22985189]
[1773423449820,4.72835595,2115.0,2114.0,1.22985189]
[1773423449821,1.18206445,2115.0,2114.0,1.22985189]
[1773423450948,0.001,2114.9,2114.0,1.18254821]
[1773423451645,0.001,2114.9,2114.1,2.9734179]
[1773423452060,0.001,2114.9,2114.2,2.92611645]
[1773423453424,0.001,2114.9,2114.3,2.73042444]
[1773423454549,0.001,2114.9,2114.3,1.18242444]
[1773423454789,0.001,2114.9,2114.4,1.549]
[1773423455454,0.001,2114.9,2114.5,1.1823126]
[1773423457146,0.001,2114.9,2114.5,2.7333126]
[1773423457542,0.001,2114.9,2114.6,1.551]
[1773423459763,0.001,2114.9,2114.3,4.72925041]
[1773423459935,3.03501186,2114.9,2114.2,1.18244533]
[1773423460460,3.03401186,2114.6,2113.5,0.0011]
[1773423460635,3.03401186,2114.3,2113.5,0.0011]
[1773423460959,3.03401186,2114.3,2113.5,1.18397082]
[1773423461462,3.03401186,2114.3,2113.5,1.18396811]
[1773423461829,1.18248037,2114.2,2113.5,0.0011]
[1773423462030,4.21649223,2114.2,2113.5,0.0011]
[1773423462843,3.03401186,2114.2,2113.5,0.0011]
[1773423463165,1.8343662,2114.7,2113.5,2.92721645]
[1773423463166,0.04729697,2114.6,2113.5,2.92721645]
[1773423463367,3.08130883,2114.6,2113.5,2.92721645]
[1773423463668,1.18217155,2114.8,2113.5,2.92721645]
[1773423463840,0.04729697,2114.7,2113.7,2.92611645]
[1773423464032,4.21712713,2114.9,2113.8,0.04730816]
[1773423464033,0.04729697,2114.8,2113.8,0.04730816]
[1773423464235,3.03401186,2114.7,2113.6,1.18281604]
[1773423464439,3.03401186,2114.5,2113.6,2.72681604]
[1773423464866,3.03401186,2114.5,2113.6,1.18281604]
[1773423465057,3.03401186,2114.5,2113.5,0.0011]
[1773423465260,3.03401186,2114.5,2113.5,1.18397127]
[1773423465461,3.03401186,2114.5,2113.5,1.23128615]
[1773423466082,2.8630795,2114.3,2113.5,1.23128615]
[1773423467083,2.8630795,2114.2,2113.5,0.0011]
[1773423467237,2.8630795,2114.2,2113.5,1.18396971]
[1773423467443,2.8630795,2114.2,2113.5,0.0011]
[1773423468053,2.8630795,2114.0,2113.5,0.0011]
[1773423469651,2.8630795,2114.0,2113.0,0.0011]
[1773423469652,2.8630795,2113.6,2113.0,0.0011]
[1773423469967,2.8630795,2113.4,2112.8,0.17667066]
[1773423470169,2.8630795,2113.3,2112.0,2.71571212]
[1773423470756,2.8630795,2113.3,2112.1,0.04734624]
[1773423471283,2.8630795,2113.3,2112.0,2.71571212]
[1773423471598,2.96257919,2113.1,2112.1,1.535]
[1773423471948,2.96257919,2113.1,2112.2,0.047344]
[1773423472148,4.1457311,2113.0,2112.3,1.183544]
[1773423473097,2.96257919,2112.9,2112.2,1.18355515]
[1773423474064,1.18326391,2112.8,2112.2,1.18355515]
[1773423474266,4.14583115,2112.9,2112.2,1.18355515]
[1773423475698,1.18319565,2113.0,2112.2,1.18355515]
[1773423475863,2.96257919,2112.9,2112.2,1.18355515]
[1773423476388,4.14583485,2112.9,2112.2,1.18355515]
[1773423476564,0.23781553,2113.0,2112.3,1.544]
[1773423476770,4.14569422,2113.1,2112.3,1.544]
[1773423477107,0.04729697,2113.2,2112.4,2.75150908]
[1773423477402,3.00987616,2113.4,2112.4,2.75150908]
[1773423477808,3.00987616,2113.4,2111.6,4.73565231]
[1773423477809,2.96257919,2112.6,2111.6,4.73565231]
[1773423478099,2.96257919,2112.6,2111.6,1.18393635]
[1773423478257,2.96257919,2112.4,2111.5,0.006]
[1773423479878,1.1834129,2112.6,2112.1,0.0011]
[1773423480692,0.04729697,2112.8,2112.1,0.0011]
[1773423480896,2.96257919,2113.2,2112.1,0.0011]
[1773423480897,2.96257919,2113.0,2112.1,0.0011]
[1773423481066,0.04729697,2112.9,2112.1,0.0011]
[1773423481268,0.04729697,2112.9,2112.2,1.549]
[1773423481494,0.04729697,2113.2,2112.2,1.549]
[1773423482003,2.96257919,2113.0,2112.1,0.0011]
[1773423482306,0.04729697,2112.9,2112.1,0.0011]
[1773423482760,0.04729697,2112.9,2112.1,1.18475607]
[1773423483857,2.96257919,2112.8,2112.1,0.0011]
[1773423484092,3.00987616,2112.7,2112.1,0.0011]
[1773423484494,0.04729697,2112.7,2112.1,0.0011]
[1773423484708,1.23053807,2112.9,2112.1,0.0011]
[1773423485005,4.19311726,2112.9,2112.1,0.0011]
[1773423485373,3.00987616,2112.9,2112.1,0.0011]
[1773423485576,0.04729697,2112.9,2112.1,0.0011]
[1773423485762,0.04729697,2113.0,2112.1,2.75260908]
[1773423485966,0.28295979,2113.0,2112.1,2.75260908]
[1773423486397,0.04729697,2113.0,2112.1,2.75260908]
[1773423486599,0.04729697,2113.1,2112.1,2.75260908]
[1773423486976,0.04729697,2113.1,2112.3,2.75150908]
[1773423487294,1.23127814,2113.4,2112.3,2.75150908]
[1773423487700,0.04829697,2113.4,2112.3,2.75150908]
[1773423487869,0.001,2113.4,2112.3,2.75150908]
[1773423488071,0.001,2113.4,2112.5,2.75150908]
[1773423488316,0.04729697,2113.6,2112.7,2.75150908]
[1773423488469,4.1451317,2114.1,2112.7,2.75150908]
[1773423488674,0.04729697,2114.0,2112.7,2.75150908]
[1773423488869,0.04729697,2114.0,2112.9,2.75150908]
[1773423489073,1.22991456,2114.0,2112.9,2.75150908]
[1773423489290,4.19249375,2114.0,2113.0,1.552]
[1773423489679,0.04729697,2114.0,2113.1,2.75150908]
[1773423489881,4.19240673,2114.2,2113.1,2.75150908]
[1773423490084,1.8343662,2113.2,2112.2,1.18356942]
[1773423490273,0.04729697,2113.1,2112.2,1.18356942]
[1773423490598,3.00987616,2113.1,2112.2,1.18356942]
[1773423490804,3.00987616,2113.1,2112.2,2.73656942]
[1773423490998,1.18315191,2113.0,2112.2,2.73656942]
[1773423491299,0.04729697,2112.9,2112.2,2.73656942]
[1773423491488,1.23031535,2113.3,2112.2,2.73656942]
[1773423491699,1.23031535,2113.3,2112.2,3.9350785]
[1773423491876,0.04729697,2113.3,2112.3,1.553]
[1773423492205,0.04729697,2113.3,2112.3,4.30450908]
[1773423492983,0.04729697,2113.3,2112.4,1.18348797]
[1773423492984,1.23028486,2113.3,2112.4,1.18348797]
[1773423493200,1.2302842,2113.3,2112.4,1.18348797]
[1773423493709,0.04729697,2113.3,2112.5,0.04733727]
[1773423494082,1.23028304,2113.3,2112.5,0.04733727]
[1773423494499,0.04729697,2113.3,2112.5,0.04733727]
[1773423494906,2.96257919,2113.8,2112.6,1.18337593]
[1773423495182,0.04729697,2113.7,2112.6,2.73637593]
[1773423495603,0.04729697,2113.7,2112.6,5.48788501]
[1773423496007,3.00987616,2113.7,2112.6,2.73637593]
[1773423496399,3.00987616,2113.7,2112.6,2.73747593]
[1773423496606,3.00987616,2113.7,2112.7,1.553]
[1773423497009,2.96257919,2113.5,2112.8,1.553]
[1773423497213,0.04729697,2113.4,2112.8,1.553]
[1773423499122,0.04729697,2113.4,2112.9,1.18320791]
[1773423499506,0.04729697,2113.5,2112.9,1.18320791]
[1773423499706,0.04729697,2113.5,2112.9,0.04732831]
[1773423499884,0.04729697,2113.5,2112.6,0.0011]
[1773423499885,3.00987616,2113.5,2112.7,1.18328961]
[1773423500085,3.00987616,2113.5,2112.8,0.04733055]
[1773423500624,0.04729697,2113.6,2112.8,2.79883963]
[1773423501005,1.23016732,2113.6,2112.9,4.73269212]
[1773423501190,1.23016732,2113.6,2113.0,1.60132607]
[1773423501536,1.23011805,2113.6,2113.0,1.60132607]
[1773423501694,0.04729697,2113.6,2113.0,1.60132607]
[1773423502023,1.23011737,2113.6,2113.0,1.60132607]
[1773423502724,1.23011737,2113.6,2113.0,1.554]
[1773423502903,1.23011737,2113.6,2113.1,0.04732383]
[1773423503102,0.04729697,2113.6,2113.2,1.18303993]
[1773423504313,1.1506843,2113.7,2113.2,1.18303993]
[1773423504700,4.37785168,2113.8,2113.2,1.18303993]
[1773423504903,4.14631078,2113.8,2113.2,1.18303993]
[1773423506021,4.14631078,2113.8,2113.1,4.73237494]
[1773423506710,4.14631078,2113.8,2113.2,1.554]
[1773423506915,4.14631078,2113.8,2113.2,1.60132159]
[1773423507418,0.001,2113.8,2113.2,1.60132159]
[1773423508001,0.001,2113.8,2113.3,1.18298395]
[1773423508507,0.001,2113.8,2112.9,4.73282276]
[1773423508508,2.86907528,2113.8,2112.9,4.73282276]
[1773423508826,2.86907528,2113.8,2113.0,1.554]
[1773423509214,0.001,2113.6,2113.0,1.554]
[1773423509412,2.86907528,2113.6,2112.9,0.0011]
[1773423509611,2.86807528,2113.4,2112.9,0.0011]
[1773423510014,2.86807528,2113.2,2112.9,0.0011]
[1773423510724,4.05100371,2113.4,2112.9,0.0011]
[1773423511099,2.86807528,2113.3,2112.9,0.0011]
[1773423511917,2.86807528,2113.3,2112.4,0.0011]
[1773423512118,2.86807528,2112.7,2112.1,0.0011]
[1773423512299,2.86807528,2112.3,2111.5,0.006]
[1773423513913,2.86807528,2112.3,2111.5,1.18998827]
[1773423514226,4.05167531,2112.2,2111.5,1.18998827]
[1773423514633,1.18360003,2112.2,2111.5,1.18998827]
[1773423516035,4.73398917,2112.4,2111.6,1.538]
[1773423516222,2.86807528,2112.3,2111.6,1.538]
[1773423516420,1.18360003,2112.2,2111.6,2.72190911]
[1773423517243,2.86807528,2112.1,2111.5,0.006]
[1773423517444,2.86807528,2112.1,2111.5,1.18995935]
[1773423517748,1.18360003,2112.2,2111.5,1.18995935]
[1773423518209,4.28424699,2112.4,2111.5,1.18995935]
[1773423518413,4.28424699,2112.4,2111.7,1.18388028]
[1773423518717,1.183467,2112.5,2111.8,0.04735296]
[1773423519119,1.183467,2112.5,2111.9,1.542]
[1773423519315,1.41826279,2112.5,2111.9,1.543]
[1773423520345,4.28633807,2112.5,2111.9,2.72775687]
[1773423520843,4.33367086,2112.5,2111.9,2.72775687]
[1773423521341,0.04733279,2112.5,2112.0,0.04734848]
[1773423521523,1.18344058,2112.5,2112.0,0.04734848]
[1773423521712,1.23077337,2112.5,2112.0,0.04734848]
[1773423522377,1.23077337,2112.5,2112.0,1.23104903]
[1773423523140,4.09884865,2112.5,2111.9,2.72872364]
[1773423523437,0.04733279,2112.5,2112.0,0.04734848]
[1773423523816,0.04733279,2112.5,2112.1,1.547]
[1773423524141,0.001,2112.2,2112.0,0.04734848]
[1773423524332,0.001,2112.2,2111.9,2.73172364]
[1773423524519,0.001,2112.2,2112.0,0.04734848]
[1773423525349,1.83875933,2113.3,2112.0,0.04734848]
[1773423525514,2.89040067,2112.8,2112.0,0.04734848]
[1773423525714,2.89040067,2112.8,2111.9,5.48023092]
[1773423525715,0.04733279,2112.7,2111.9,5.48023092]
[1773423525915,0.04733279,2112.7,2112.0,0.04734848]
[1773423526134,0.04733279,2112.7,2111.9,5.48023092]
[1773423526826,2.89040067,2112.6,2111.7,1.18494812]
[1773423527023,1.23067495,2112.7,2111.8,0.04735296]
[1773423527024,2.89040067,2112.4,2111.8,0.04735296]
[1773423527223,0.04733279,2112.3,2111.7,1.18494812]
[1773423528254,2.89040067,2112.4,2111.7,1.18494812]
[1773423528448,4.36068707,2112.7,2111.7,1.18494812]
[1773423528750,4.36068707,2112.7,2111.8,2.7484644]
[1773423530052,2.89040067,2112.6,2111.9,1.18376817]
[1773423530247,0.04733279,2112.5,2112.0,1.551]
[1773423531455,0.04733279,2112.5,2111.9,1.18376817]
[1773423531752,0.04733279,2112.5,2112.0,1.552]
[1773423532326,2.93773346,2112.6,2112.1,1.23100231]
[1773423532521,6.57107626,2113.2,2112.2,2.67571452]
[1773423532522,0.04733279,2113.1,2112.2,2.67571452]
[1773423533554,2.91830321,2113.4,2112.2,2.67571452]
[1773423534257,2.91830321,2113.4,2112.2,2.72305852]
[1773423534428,1.18298395,2113.3,2112.4,2.67571452]
[1773423534631,0.04733279,2113.2,2112.5,4.22971452]
[1773423534855,4.10126044,2113.4,2112.5,4.22971452]
[1773423535038,4.10126044,2113.4,2112.6,2.67571452]
[1773423535640,4.10126044,2113.4,2112.7,1.554]
[1773423535956,0.04733279,2113.4,2112.7,4.22971452]
[1773423536168,0.04733279,2113.5,2112.8,2.67571452]
[1773423537042,0.04733279,2113.5,2112.9,3.85892243]
[1773423537248,0.001,2113.6,2113.0,2.67571452]
[1773423538157,0.001,2113.8,2113.0,2.67571452]
[1773423539144,0.001,2113.8,2113.2,2.67571452]
[1773423539448,0.001,2113.8,2113.3,1.555]
[1773423540158,0.001,2113.8,2113.3,4.23071452]
[1773423540360,0.001,2113.8,2113.4,2.67571452]
[1773423541263,0.001,2113.8,2113.3,6.49917093]
[1773423541438,0.001,2113.8,2113.3,2.95022532]
[1773423541639,0.001,2113.8,2113.4,4.73148805]
[1773423542862,0.001,2113.8,2113.5,1.556]
[1773423543365,0.001,2113.8,2113.6,1.18281604]
[1773423543561,2.87197042,2113.8,2113.2,1.556]
[1773423544338,0.001,2113.8,2113.2,1.94747139]
[1773423544558,0.001,2113.8,2113.3,0.38850525]
[1773423545432,0.001,2113.8,2113.4,1.56846338]
[1773423545836,1.18246344,2114.3,2113.4,1.56846338]
[1773423546053,7.60052301,2114.4,2113.4,1.56846338]
[1773423546054,3.11073249,2114.4,2113.5,0.3845354]
[1773423546442,2.87097042,2114.4,2113.5,0.3845354]
[1773423547966,4.10058429,2114.6,2113.7,0.3785948]
[1773423548161,4.10058429,2114.6,2113.8,1.557]
[1773423548469,2.87097042,2114.5,2113.8,1.557]
[1773423548679,1.22961387,2114.6,2113.6,1.18281604]
[1773423548680,2.91830321,2114.4,2113.6,1.18281604]
[1773423548969,2.91830321,2114.4,2113.7,1.6043104]
[1773423549646,2.87097042,2114.4,2113.7,1.557]
[1773423549847,4.05335496,2114.4,2113.8,1.18270413]
[1773423550052,4.05334706,2114.4,2113.8,2.73970413]
[1773423550260,2.91830321,2114.3,2113.8,1.18270413]
[1773423551076,0.001,2114.2,2113.8,1.18270413]
[1773423551662,0.001,2114.2,2113.9,0.04730592]
[1773423551973,0.001,2114.2,2114.0,1.18259224]
[1773423552176,4.72939377,2114.9,2114.1,0.36563968]
[1773423552177,2.87197042,2114.9,2114.1,0.36563968]
[1773423552345,7.67430213,2115.4,2114.4,0.36563968]
[1773423552346,2.87097042,2115.3,2114.4,0.36563968]
[1773423552550,2.91830321,2115.2,2114.1,0.36265501]
[1773423552778,2.91830321,2115.2,2114.3,0.36265501]
[1773423553277,2.87097042,2115.5,2114.5,0.36265501]
[1773423553443,2.87097042,2115.5,2114.7,0.36265501]
[1773423553959,2.87097042,2115.5,2114.8,1.18214488]
[1773423554279,0.04733279,2115.6,2114.8,1.56398578]
[1773423554769,0.04733279,2115.6,2114.9,0.37781593]
[1773423554950,4.09999295,2115.7,2114.9,0.37781593]
[1773423555362,2.87097042,2115.6,2114.7,1.558]
[1773423555577,2.87097042,2115.4,2114.7,1.558]
[1773423556273,2.87097042,2115.3,2114.4,1.1823126]
[1773423556479,2.87097042,2115.3,2114.8,1.558]
[1773423558351,2.87097042,2115.3,2114.9,1.18208898]
[1773423558757,2.91830321,2115.2,2114.3,1.558]
[1773423559150,2.87097042,2115.2,2114.4,0.04729474]
[1773423559476,2.87097042,2115.2,2114.4,0.40912216]
[1773423559774,2.87097042,2115.2,2113.5,4.9801]
[1773423559981,2.87097042,2115.2,2113.6,1.18281604]
[1773423559982,2.87097042,2114.9,2113.6,1.18281604]
[1773423560281,1.1823126,2114.5,2113.5,0.0011]
[1773423560450,2.87097042,2114.4,2113.5,0.0011]
[1773423563060,2.73455769,2114.3,2113.5,0.0011]
[1773423564048,2.73455769,2114.3,2113.2,1.18301368]
[1773423565047,2.73455769,2114.1,2112.8,4.73297866]
[1773423565278,2.73455769,2114.1,2113.1,1.541]
[1773423565476,2.73455769,2114.1,2112.8,1.18326391]
[1773423565684,2.73455769,2114.1,2112.8,2.72526391]
[1773423567701,2.73400769,2113.9,2112.6,1.18333468]
[1773423567980,2.73400769,2113.9,2112.0,0.37573925]
[1773423567981,2.73400769,2113.7,2112.2,4.73419181]
[1773423568167,2.73400769,2113.4,2112.1,1.18470003]
[1773423570079,2.73400769,2113.2,2112.2,1.546]
[1773423571583,2.73400769,2113.2,2112.3,13.992512]
[1773423571877,2.73400769,2113.2,2112.3,1.548]
[1773423572049,2.73400769,2113.2,2112.4,1.18348797]
[1773423572050,2.73400769,2113.1,2112.4,1.18348797]
[1773423574253,4.73204857,2113.3,2112.4,1.18348797]
[1773423574254,2.73400769,2113.0,2112.4,1.18348797]
[1773423575467,3.9761753,2113.3,2112.4,1.18348797]
[1773423575967,2.73400769,2113.2,2112.4,1.18348797]
[1773423576580,2.73400769,2113.1,2112.6,0.0011]
[1773423579582,2.79315688,2113.3,2112.6,0.0011]
[1773423579955,2.73400769,2113.2,2112.6,0.0011]
[1773423580161,2.73400769,2113.2,2111.8,1.18382391]
[1773423580162,2.73345769,2112.7,2111.8,1.18382391]
[1773423580356,2.73345769,2112.7,2111.8,1.18381472]
[1773423580593,2.73345769,2112.7,2111.8,1e-08]
[1773423580886,2.73345769,2112.7,2111.8,1.1838224]
[1773423581766,2.73345769,2112.5,2111.8,1.1838224]
[1773423583777,2.73345769,2112.5,2112.0,1.18371212]
[1773423583983,1.92039489,2117.7,2112.0,1.18371212]
[1773423583984,2.73345769,2113.0,2112.1,0.02373135]
[1773423584164,2.73345769,2113.0,2112.0,1.18371212]
[1773423584597,2.79261528,2113.0,2112.1,1.553]
[1773423584791,2.73345769,2112.8,2111.8,1e-08]
[1773423585091,2.73738927,2112.6,2111.8,1e-08]
[1773423585472,2.73738927,2112.5,2111.6,1.18802543]
[1773423585988,2.73738927,2112.3,2111.6,1.18802543]
[1773423588296,3.92097744,2112.3,2111.6,1.18802543]
[1773423588866,0.05917159,2112.5,2111.8,0.0011]
[1773423589362,0.05917159,2112.5,2111.9,1.555]
[1773423589558,2.73738927,2112.6,2111.9,1.555]
[1773423589780,0.06016319,2112.8,2111.9,1.555]
[1773423590194,2.73838927,2112.8,2111.9,1.555]
[1773423590374,0.05916599,2112.7,2112.0,1.18371212]
[1773423590977,2.73838927,2112.8,2112.0,1.18371212]
[1773423591883,0.001,2112.8,2112.0,1.18371212]
[1773423592082,0.001,2112.8,2112.0,1.47774336]
[1773423592667,2.79307088,2112.8,2112.0,1.18371212]
[1773423593497,2.79307088,2112.8,2111.9,1.18373855]
[1773423594472,2.73290769,2112.6,2111.8,0.0011]
[1773423594691,2.79207928,2112.5,2111.8,0.0011]
[1773423596598,2.73290769,2112.3,2111.8,0.0011]
[1773423596802,2.79208041,2112.3,2111.8,0.0011]
[1773423599011,2.73290769,2112.2,2111.8,0.0011]
[1773423600286,0.05917552,2112.3,2111.8,0.0011]
[1773423600498,0.05916879,2112.4,2111.8,0.0011]
[1773423600699,2.73290769,2112.5,2111.8,0.0011]
[1773423600920,2.73290769,2112.3,2111.8,0.0011]
[1773423601283,2.73290769,2112.2,2111.8,0.0011]